fUST/lending_fUST_20250430
["ID","MTS","AMOUNT","RATE_DAILY","PERIOD"]
[359381678,1745965027833,-500.0,0.00027396,2]
[359381679,1745965027865,-500.0,0.00027396,2]
[359381680,1745965027898,-500.0,0.00027396,2]
[359381681,1745965027930,-500.0,0.00027396,2]
[359381682,1745965027962,-500.0,0.00027396,2]
[359381683,1745965027994,-500.0,0.00027396,2]
[359381684,1745965028024,-500.0,0.00027396,2]
[359381685,1745965028057,-500.0,0.00027396,2]
[359381686,1745965028086,-500.0,0.00027396,2]
[359381687,1745965028118,-500.0,0.00027396,2]
[359381688,1745965028150,-500.0,0.00027396,2]
[359381689,1745965028182,-500.0,0.00027396,2]
[359381690,1745965028212,-500.0,0.00027396,2]
[359381691,1745965028246,-423.13205111,0.00027396,2]
[359381692,1745965028281,-500.0,0.00027396,2]
[359381693,1745965028317,-500.0,0.00027396,2]
[359381694,1745965028352,-500.0,0.00027396,2]
[359381695,1745965028378,-110.18593158,0.00027397,2]
[359381696,1745965028408,-400.0,0.00027397,2]
[359381697,1745965028433,-400.0,0.00027397,2]
[359381698,1745965028459,-507.62,0.00027397,2]
[359381699,1745965028485,-400.0,0.00027397,2]
[359381700,1745965028512,-400.0,0.00027397,2]
[359381701,1745965028537,-400.0,0.00027397,2]
[359381702,1745965028563,-400.0,0.00027397,2]
[359381703,1745965028589,-400.0,0.00027397,2]
[359381704,1745965028612,-400.0,0.00027397,2]
[359381705,1745965028635,-400.0,0.00027397,2]
[359381706,1745965028663,-1048.38,0.00027397,2]
[359381707,1745965028688,-400.0,0.00027397,2]
[359381708,1745965028713,-400.0,0.00027397,2]
[359381709,1745965028737,-349.0,0.00027397,2]
[359381710,1745965028761,-500.0,0.00027397,2]
[359381711,1745965028784,-400.0,0.00027397,2]
[359381712,1745965028809,-605.91,0.00027397,2]
[359381713,1745965028832,-400.0,0.00027397,2]
[359381714,1745965028855,-400.0,0.00027397,2]
[359381715,1745965028879,-644.72,0.00027397,2]
[359381716,1745965028904,-400.0,0.00027397,2]
[359381717,1745965028928,-1098.37,0.00027397,2]
[359381718,1745965028952,-400.0,0.00027397,2]
[359381719,1745965028976,-732.07,0.00027397,2]
[359381720,1745965029000,-400.0,0.00027397,2]
[359381721,1745965029024,-1736.7,0.00027397,2]
[359381722,1745965029173,-500.0,0.00027397,2]
[359381723,1745965029197,-1787.91,0.00027397,2]
[359381724,1745965029221,-400.0,0.00027397,2]
[359381725,1745965029246,-400.0,0.00027397,2]
[359381726,1745965029270,-400.0,0.00027397,2]
[359381727,1745965029294,-709.26,0.00027397,2]
[359381728,1745965029319,-400.0,0.00027397,2]
[359381729,1745965029343,-400.0,0.00027397,2]
[359381730,1745965029367,-400.0,0.00027397,2]
[359381731,1745965029391,-2001.98,0.00027397,2]
[359381732,1745965029418,-1191.83,0.00027397,2]
[359381733,1745965029442,-745.66,0.00027397,2]
[359381734,1745965029466,-400.0,0.00027397,2]
[359381735,1745965029490,-4423.5,0.00027397,2]
[359381736,1745965029518,-400.0,0.00027397,2]
[359381737,1745965029542,-2104.19,0.00027397,2]
[359381738,1745965029566,-927.33,0.00027397,2]
[359381739,1745965029591,-400.0,0.00027397,2]
[359381740,1745965029616,-425.96,0.00027397,2]
[359381741,1745965029642,-3380.9,0.00027397,2]
[359381742,1745965029668,-400.0,0.00027397,2]
[359381743,1745965029692,-926.58,0.00027397,2]
[359381744,1745965029715,-400.0,0.00027397,2]
[359381745,1745965029740,-400.0,0.00027397,2]
[359381746,1745965029764,-1127.2,0.00027397,2]
[359381747,1745965029787,-1033.89,0.00027397,2]
[359381748,1745965029811,-1055.31,0.00027397,2]
[359381749,1745965029836,-1743.43,0.00027397,2]
[359381750,1745965029859,-1025.21,0.00027397,2]
[359381751,1745965029882,-500.0,0.00027397,2]
[359381752,1745965029907,-400.0,0.00027397,2]
[359381753,1745965029930,-400.0,0.00027397,2]
[359381754,1745965029954,-400.0,0.00027397,2]
[359381755,1745965029978,-400.0,0.00027397,2]
[359381756,1745965030002,-1246.01,0.00027397,2]
[359381757,1745965030026,-400.0,0.00027397,2]
[359381758,1745965030050,-769.66,0.00027397,2]
[359381759,1745965030075,-400.0,0.00027397,2]
[359381760,1745965030099,-400.0,0.00027397,2]
[359381761,1745965030122,-400.0,0.00027397,2]
[359381762,1745965030148,-556.73,0.00027397,2]
[359381763,1745965030171,-400.0,0.00027397,2]
[359381764,1745965030195,-400.0,0.00027397,2]
[359381765,1745965030218,-415.76,0.00027397,2]
[359381766,1745965030243,-843.42,0.00027397,2]
[359381767,1745965030267,-500.0,0.00027397,2]
[359381768,1745965030290,-400.0,0.00027397,2]
[359381769,1745965030316,-820.12,0.00027397,2]
[359381770,1745965030341,-428.34,0.00027397,2]
[359381771,1745965030366,-527.91,0.00027397,2]
[359381772,1745965030391,-2866.86,0.00027397,2]
[359381773,1745965030417,-400.0,0.00027397,2]
[359381774,1745965030442,-400.0,0.00027397,2]
[359381775,1745965030466,-400.0,0.00027397,2]
[359381776,1745965030492,-400.0,0.00027397,2]
[359381777,1745965030520,-722.06,0.00027397,2]
[359381778,1745965030545,-400.0,0.00027397,2]
[359381779,1745965030570,-400.0,0.00027397,2]
[359381780,1745965030597,-405.91,0.00027397,2]
[359381781,1745965030622,-400.0,0.00027397,2]
[359381782,1745965030647,-2405.06,0.00027397,2]
[359381783,1745965030673,-400.0,0.00027397,2]
[359381784,1745965030698,-400.0,0.00027397,2]
[359381785,1745965030721,-400.0,0.00027397,2]
[359381786,1745965030745,-400.0,0.00027397,2]
[359381787,1745965030769,-400.0,0.00027397,2]
[359381788,1745965030793,-1007.25,0.00027397,2]
[359381789,1745965030817,-400.0,0.00027397,2]
[359381790,1745965030841,-852.91,0.00027397,2]
[359381791,1745965030864,-633.24,0.00027397,2]
[359381792,1745965030888,-530.95,0.00027397,2]
[359381793,1745965030912,-400.0,0.00027397,2]
[359381794,1745965030935,-400.0,0.00027397,2]
[359381795,1745965030960,-868.4,0.00027397,2]
[359381796,1745965030984,-412.78,0.00027397,2]
[359381797,1745965031009,-1141.23,0.00027397,2]
[359381798,1745965031034,-673.45,0.00027397,2]
[359381799,1745965031058,-1475.44,0.00027397,2]
[359381800,1745965031082,-400.0,0.00027397,2]
[359381801,1745965031106,-196.48509824,0.00027397,2]
[359381802,1745965031130,-668.13,0.00027397,2]
[359381803,1745965031155,-400.0,0.00027397,2]
[359381804,1745965031179,-400.0,0.00027397,2]
[359381805,1745965031203,-400.0,0.00027397,2]
[359381806,1745965031226,-603.73,0.00027397,2]
[359381807,1745965031249,-547.97,0.00027397,2]
[359381808,1745965031274,-2091.23,0.00027397,2]
[359381809,1745965031298,-400.0,0.00027397,2]
[359381810,1745965031324,-1673.7,0.00027397,2]
[359381811,1745965031347,-400.0,0.00027397,2]
[359381812,1745965031371,-400.0,0.00027397,2]
[359381813,1745965031397,-1432.06,0.00027397,2]
[359381814,1745965031421,-400.0,0.00027397,2]
[359381815,1745965031446,-503.85,0.00027397,2]
[359381816,1745965031469,-947.45,0.00027397,2]
[359381817,1745965031613,-400.0,0.00027397,2]
[359381818,1745965031640,-400.0,0.00027397,2]
[359381819,1745965031666,-549.56,0.00027397,2]
[359381820,1745965031690,-400.0,0.00027397,2]
[359381821,1745965031715,-400.0,0.00027397,2]
[359381822,1745965031741,-400.0,0.00027397,2]
[359381823,1745965031765,-400.0,0.00027397,2]
[359381824,1745965031790,-500.0,0.00027397,2]
[359381825,1745965031816,-400.0,0.00027397,2]
[359381826,1745965031841,-400.0,0.00027397,2]
[359381827,1745965031865,-400.0,0.00027397,2]
[359381828,1745965031891,-949.83,0.00027397,2]
[359381829,1745965031918,-400.0,0.00027397,2]
[359381830,1745965031942,-197.91609587,0.00027397,2]
[359381831,1745965031967,-1052.49,0.00027397,2]
[359381832,1745965031991,-400.0,0.00027397,2]
[359381833,1745965032014,-152.0,0.00027466,2]
[359381834,1745965032038,-300.0,0.00027553,5]
[359381835,1745965032062,-500.0,0.00027553,5]
[359381836,1745965032086,-500.0,0.00027553,5]
[359381837,1745965032110,-500.0,0.00027553,5]
[359381838,1745965032134,-500.0,0.00027553,5]
[359381839,1745965032160,-664.72438904,0.00027571,2]
[359381840,1745965032186,-400.0,0.00027671,2]
[359381841,1745965032211,-400.0,0.00027671,2]
[359381842,1745965032235,-400.0,0.00027671,2]
[359381843,1745965032260,-151.0,0.00027671,7]
[359381844,1745965032285,-151.0,0.00027671,7]
[359381845,1745965032310,-507.62,0.00027671,2]
[359381846,1745965032336,-400.0,0.00027671,2]
[359381847,1745965032361,-400.0,0.00027671,2]
[359381848,1745965032388,-400.0,0.00027671,2]
[359381849,1745965032415,-400.0,0.00027671,2]
[359381850,1745965032440,-400.0,0.00027671,2]
[359381851,1745965032464,-400.0,0.00027671,2]
[359381852,1745965032489,-151.0,0.00027671,7]
[359381853,1745965032517,-151.0,0.00027671,7]
[359381854,1745965032542,-151.0,0.00027671,7]
[359381855,1745965032567,-277.745411,0.00027671,7]
[359381856,1745965032592,-203.260835,0.00027671,7]
[359381857,1745965032617,-203.260835,0.00027671,7]
[359381858,1745965032642,-203.260835,0.00027671,7]
[359381859,1745965032669,-203.260835,0.00027671,7]
[359381860,1745965032693,-400.0,0.00027671,2]
[359381861,1745965032718,-1048.38,0.00027671,2]
[359381862,1745965032744,-400.0,0.00027671,2]
[359381863,1745965032768,-400.0,0.00027671,2]
[359381864,1745965032791,-400.0,0.00027671,2]
[359381865,1745965032816,-605.91,0.00027671,2]
[359381866,1745965032840,-400.0,0.00027671,2]
[359381867,1745965032864,-180.51164653,0.00027671,2]
[359381868,1745965032887,-644.72,0.00027671,2]
[359381869,1745965032913,-400.0,0.00027671,2]
[359381870,1745965032937,-1098.37,0.00027671,2]
[359381871,1745965032961,-400.0,0.00027671,2]
[359381872,1745965032985,-732.07,0.00027671,2]
[359381873,1745965033010,-400.0,0.00027671,2]
[359381874,1745965033034,-1736.7,0.00027671,2]
[359381875,1745965033057,-1787.91,0.00027671,2]
[359381876,1745965033081,-400.0,0.00027671,2]
[359381877,1745965033105,-400.0,0.00027671,2]
[359381878,1745965033129,-400.0,0.00027671,2]
[359381879,1745965033157,-400.0,0.00027671,2]
[359381880,1745965033181,-709.26,0.00027671,2]
[359381881,1745965033205,-400.0,0.00027671,2]
[359381882,1745965033230,-400.0,0.00027671,2]
[359381883,1745965033254,-2001.98,0.00027671,2]
[359381884,1745965033278,-1191.83,0.00027671,2]
[359381885,1745965033304,-745.66,0.00027671,2]
[359381886,1745965033329,-217.87331052,0.00027671,2]
[359381887,1745965033354,-4423.5,0.00027671,2]
[359381888,1745965033379,-400.0,0.00027671,2]
[359381889,1745965033404,-2104.19,0.00027671,2]
[359381890,1745965033428,-927.33,0.00027671,2]
[359381891,1745965033452,-400.0,0.00027671,2]
[359381892,1745965033478,-425.96,0.00027671,2]
[359381893,1745965033506,-3380.9,0.00027671,2]
[359381894,1745965033529,-400.0,0.00027671,2]
[359381895,1745965033555,-926.58,0.00027671,2]
[359381896,1745965033578,-400.0,0.00027671,2]
[359381897,1745965033602,-400.0,0.00027671,2]
[359381898,1745965033629,-1127.2,0.00027671,2]
[359381899,1745965033655,-1033.89,0.00027671,2]
[359381900,1745965033679,-1055.31,0.00027671,2]
[359381901,1745965033703,-1743.43,0.00027671,2]
[359381902,1745965033727,-1025.21,0.00027671,2]
[359381903,1745965033751,-400.0,0.00027671,2]
[359381904,1745965033776,-400.0,0.00027671,2]
[359381905,1745965033801,-400.0,0.00027671,2]
[359381906,1745965033826,-400.0,0.00027671,2]
[359381907,1745965033851,-1246.01,0.00027671,2]
[359381908,1745965033876,-400.0,0.00027671,2]
[359381909,1745965033901,-769.66,0.00027671,2]
[359381910,1745965033925,-400.0,0.00027671,2]
[359381911,1745965033950,-201.42122779,0.00027671,2]
[359381912,1745965034090,-400.0,0.00027671,2]
[359381913,1745965034116,-400.0,0.00027671,2]
[359381914,1745965034141,-280.27679256,0.00027671,2]
[359381915,1745965034167,-415.76,0.00027671,2]
[359381916,1745965034193,-843.42,0.00027671,2]
[359381917,1745965034217,-400.0,0.00027671,2]
[359381918,1745965034242,-820.12,0.00027671,2]
[359381919,1745965034266,-428.34,0.00027671,2]
[359381920,1745965034290,-527.91,0.00027671,2]
[359381921,1745965034317,-2866.86,0.00027671,2]
[359381922,1745965034343,-400.0,0.00027671,2]
[359381923,1745965034367,-400.0,0.00027671,2]
[359381924,1745965034392,-400.0,0.00027671,2]
[359381925,1745965034423,-400.0,0.00027671,2]
[359381926,1745965034449,-722.06,0.00027671,2]
[359381927,1745965034474,-400.0,0.00027671,2]
[359381928,1745965034499,-400.0,0.00027671,2]
[359381929,1745965034528,-405.91,0.00027671,2]
[359381930,1745965034554,-1927.03861711,0.00027671,2]
[359381931,1745965109388,-250.0,0.00026023,2]
[359381946,1745965532137,-6024.87032223,0.00021,2]
[359381947,1745965532159,-172.646832,0.00026005,2]
[359381948,1745965532179,-250.0,0.00026216,2]
[359381949,1745965532200,-4499.0494546,0.00026217,2]
[359381950,1745965532221,-1000.0,0.00026316,2]
[359381951,1745965532243,-207.4,0.00026337,2]
[359381952,1745965532266,-738.0,0.00026847,2]
[359381953,1745965532290,-2782.00686986,0.000269,7]
[359381954,1745965532311,-503.8125801,0.00027068,4]
[359381955,1745965532332,-1797.018524,0.00027273,2]
[359381956,1745965532354,-667.07005716,0.00027273,2]
[359381957,1745965532377,-667.07005715,0.00027279,2]
[359381958,1745965532398,-667.07005715,0.00027285,2]
[359381959,1745965532421,-1077.40605679,0.00027287,2]
[359381960,1745965532442,-179.59,0.00027287,3]
[359381961,1745965532467,-538.78,0.00027287,3]
[359381962,1745965532490,-842.98,0.00027287,3]
[359381963,1745965532512,-4624.983028,0.00027287,2]
[359381964,1745965532534,-667.07005715,0.00027291,2]
[359381965,1745965532557,-168.40978071,0.00027296,2]
[359381966,1745965532579,-500.0,0.00027296,2]
[359381967,1745965532602,-166.13490717,0.00027296,2]
[359381968,1745965532626,-161.75910266,0.00027296,2]
[359381969,1745965532649,-184.57586829,0.00027296,2]
[359381970,1745965532673,-477.41745639,0.00027296,2]
[359381971,1745965532704,-500.0,0.00027296,2]
[359381972,1745965532736,-500.0,0.00027296,2]
[359381973,1745965532766,-258.95323783,0.00027296,2]
[359381974,1745965532787,-222315.98079776,0.00027297,2]
[359381975,1745965537099,-147684.01920224,0.00027297,2]
[359381976,1745965537123,-667.07005715,0.00027297,2]
[359381977,1745965537144,-500.0,0.00027373,2]
[359381978,1745965537165,-500.0,0.00027373,2]
[359381979,1745965537186,-500.0,0.00027373,2]
[359381980,1745965537207,-300.0,0.00027373,2]
[359381981,1745965537229,-500.0,0.00027373,2]
[359381982,1745965537250,-500.0,0.00027373,2]
[359381983,1745965537272,-500.0,0.00027373,2]
[359381984,1745965537301,-2782.00686982,0.00027383,7]
[359381985,1745965537326,-307.83030194,0.00027387,2]
[359381986,1745965537349,-317.35648685,0.00027397,2]
[359381987,1745965588592,-274.7174005,0.00025905,2]
[359381988,1745965591119,-725.2825995,0.00025905,2]
[359381989,1745965591142,-403.0500641,0.00027068,4]
[359381990,1745965591163,-500.0,0.00027373,2]
[359381991,1745965591185,-300.0,0.00027396,2]
[359381992,1745965591207,-1017.56351315,0.00027397,2]
[359381993,1745965591229,-400.0,0.00027397,2]
[359381994,1745965591252,-500.0,0.00027397,2]
[359381995,1745965591273,-400.0,0.00027397,2]
[359381996,1745965591295,-400.0,0.00027397,2]
[359381997,1745965591317,-400.0,0.00027397,2]
[359381998,1745965591338,-400.0,0.00027397,2]
[359381999,1745965591360,-400.0,0.00027397,2]
[359382000,1745965591381,-501.87814863,0.00027397,2]
[359382001,1745965591404,-590.63,0.00027397,2]
[359382002,1745965591425,-400.0,0.00027397,2]
[359382003,1745965591446,-400.0,0.00027397,2]
[359382004,1745965591467,-400.0,0.00027397,2]
[359382005,1745965591491,-451.98,0.00027397,2]
[359382006,1745965591512,-500.0,0.00027397,2]
[359382007,1745965591533,-400.0,0.00027397,2]
[359382008,1745965591555,-400.0,0.00027397,2]
[359382009,1745965591576,-400.0,0.00027397,2]
[359382010,1745965591597,-400.0,0.00027397,2]
[359382011,1745965591618,-400.0,0.00027397,2]
[359382012,1745965591639,-400.0,0.00027397,2]
[359382013,1745965591662,-400.0,0.00027397,2]
[359382014,1745965591683,-400.0,0.00027397,2]
[359382015,1745965591703,-400.0,0.00027397,2]
[359382016,1745965591728,-500.0,0.00027397,2]
[359382017,1745965591748,-400.0,0.00027397,2]
[359382018,1745965591769,-313.54714062,0.00027397,2]
[359382019,1745965643110,-322.4400513,0.00027068,4]
[359382020,1745965643131,-300.0,0.00027196,2]
[359382021,1745965643152,-292079.23186714,0.00027197,2]
[359382022,1745965643173,-1572.3912085,0.00027297,2]
[359382023,1745965643194,-500.0,0.00027373,2]
[359382024,1745965643215,-500.0,0.00027373,2]
[359382025,1745965643235,-500.0,0.00027373,2]
[359382026,1745965643256,-704.17285938,0.00027397,2]
[359382027,1745965643277,-510.85382546,0.00027397,2]
[359382028,1745965643298,-400.0,0.00027397,2]
[359382029,1745965643321,-400.0,0.00027397,2]
[359382030,1745965643343,-500.0,0.00027397,2]
[359382031,1745965643365,-438.8,0.00027397,2]
[359382032,1745965643386,-400.0,0.00027397,2]
[359382033,1745965643408,-400.0,0.00027397,2]
[359382034,1745965643429,-1224.64,0.00027397,2]
[359382035,1745965643454,-400.0,0.00027397,2]
[359382036,1745965643477,-400.0,0.00027397,2]
[359382037,1745965643499,-505.82390333,0.00027397,2]
[359382038,1745965643520,-203.04045289,0.00027397,2]
[359382039,1745965645096,-196.95954711,0.00027397,2]
[359382040,1745965645117,-490.29,0.00027397,2]
[359382041,1745965645139,-639.77,0.00027397,2]
[359382042,1745965645160,-400.0,0.00027397,2]
[359382043,1745965645181,-400.0,0.00027397,2]
[359382044,1745965645203,-503.39124561,0.00027397,2]
[359382045,1745965645224,-500.0,0.00027397,2]
[359382046,1745965645245,-400.0,0.00027397,2]
[359382047,1745965645266,-500.0,0.00027397,2]
[359382048,1745965645287,-481.05,0.00027397,2]
[359382049,1745965645307,-1850.0,0.00027397,2]
[359382050,1745965645328,-400.0,0.00027397,2]
[359382051,1745965645348,-400.0,0.00027397,2]
[359382052,1745965645369,-411.07,0.00027397,2]
[359382053,1745965645389,-400.0,0.00027397,2]
[359382054,1745965645409,-204.93874451,0.00027397,2]
[359382055,1745965645430,-738.71,0.00027397,2]
[359382056,1745965645453,-400.0,0.00027397,2]
[359382057,1745965645474,-400.0,0.00027397,2]
[359382058,1745965645497,-919.97,0.00027397,2]
[359382059,1745965645519,-400.0,0.00027397,2]
[359382060,1745965645539,-414.51303545,0.00027397,2]
[359382061,1745965645561,-453.13,0.00027397,2]
[359382062,1745965645582,-487.76,0.00027397,2]
[359382063,1745965645603,-400.0,0.00027397,2]
[359382064,1745965645624,-400.0,0.00027397,2]
[359382065,1745965645644,-616.52,0.00027397,2]
[359382066,1745965645665,-757.11,0.00027397,2]
[359382067,1745965645685,-2705.22,0.00027397,2]
[359382068,1745965645707,-400.0,0.00027397,2]
[359382069,1745965645728,-410.48926318,0.00027397,2]
[359382070,1745965645750,-716.53,0.00027397,2]
[359382071,1745965645770,-400.0,0.00027397,2]
[359382072,1745965645790,-400.0,0.00027397,2]
[359382073,1745965645811,-400.0,0.00027397,2]
[359382074,1745965645834,-400.0,0.00027397,2]
[359382075,1745965645854,-400.0,0.00027397,2]
[359382076,1745965645875,-599.52,0.00027397,2]
[359382077,1745965645895,-21.18618214,0.00027397,2]
[359382078,1745965645928,-378.81381786,0.00027397,2]
[359382079,1745965645949,-400.0,0.00027397,2]
[359382080,1745965645970,-400.0,0.00027397,2]
[359382081,1745965645991,-400.0,0.00027397,2]
[359382082,1745965646010,-340.15181445,0.00027397,2]
[359382083,1745965646030,-400.0,0.00027397,2]
[359382084,1745965646052,-400.0,0.00027397,2]
[359382085,1745965646073,-400.0,0.00027397,2]
[359382086,1745965646097,-400.0,0.00027397,2]
[359382087,1745965646117,-400.0,0.00027397,2]
[359382088,1745965646138,-400.0,0.00027397,2]
[359382089,1745965646159,-400.0,0.00027397,2]
[359382090,1745965646179,-400.0,0.00027397,2]
[359382091,1745965646200,-400.0,0.00027397,2]
[359382092,1745965646220,-511.76304924,0.00027397,2]
[359382093,1745965646241,-400.0,0.00027397,2]
[359382094,1745965646262,-1130.55,0.00027397,2]
[359382095,1745965646283,-400.0,0.00027397,2]
[359382096,1745965646303,-871.7,0.00027397,2]
[359382097,1745965646324,-400.0,0.00027397,2]
[359382098,1745965646345,-400.0,0.00027397,2]
[359382099,1745965646366,-400.0,0.00027397,2]
[359382100,1745965646385,-400.0,0.00027397,2]
[359382101,1745965646405,-318.09020635,0.00027397,2]
[359382102,1745965646425,-400.0,0.00027397,2]
[359382103,1745965646447,-400.0,0.00027397,2]
[359382104,1745965646467,-400.0,0.00027397,2]
[359382105,1745965646487,-151.0,0.00027397,2]
[359382106,1745965646511,-2618.11,0.00027397,2]
[359382107,1745965646531,-400.0,0.00027397,2]
[359382108,1745965646552,-400.0,0.00027397,2]
[359382109,1745965646572,-418.78,0.00027397,2]
[359382110,1745965646593,-988.26,0.00027397,2]
[359382111,1745965646613,-500.0,0.00027397,2]
[359382112,1745965646635,-1433.48,0.00027397,2]
[359382113,1745965646656,-953.37,0.00027397,2]
[359382114,1745965646677,-400.0,0.00027397,2]
[359382115,1745965646699,-400.0,0.00027397,2]
[359382116,1745965646720,-400.0,0.00027397,2]
[359382117,1745965646744,-400.0,0.00027397,2]
[359382118,1745965646765,-934.01,0.00027397,2]
[359382119,1745965646787,-400.0,0.00027397,2]
[359382120,1745965646808,-1372.39,0.00027397,2]
[359382121,1745965646829,-831.61,0.00027397,2]
[359382122,1745965646849,-405.55886331,0.00027397,2]
[359382123,1745965647026,-400.0,0.00027397,2]
[359382124,1745965647047,-400.0,0.00027397,2]
[359382125,1745965647068,-412.64071358,0.00027397,2]
[359382126,1745965647089,-400.0,0.00027397,2]
[359382127,1745965647110,-400.0,0.00027397,2]
[359382128,1745965647132,-2173.15,0.00027397,2]
[359382129,1745965647153,-816.75,0.00027397,2]
[359382130,1745965647174,-400.0,0.00027397,2]
[359382131,1745965647195,-400.0,0.00027397,2]
[359382132,1745965647214,-1118.61,0.00027397,2]
[359382133,1745965647235,-405.75,0.00027397,2]
[359382134,1745965647256,-400.0,0.00027397,2]
[359382135,1745965647277,-400.0,0.00027397,2]
[359382136,1745965647297,-400.0,0.00027397,2]
[359382137,1745965647317,-1484.77,0.00027397,2]
[359382138,1745965647339,-400.0,0.00027397,2]
[359382139,1745965647359,-1220.15,0.00027397,2]
[359382140,1745965647380,-427.66,0.00027397,2]
[359382141,1745965647401,-730.98,0.00027397,2]
[359382142,1745965647423,-400.0,0.00027397,2]
[359382143,1745965647445,-400.0,0.00027397,2]
[359382144,1745965647466,-400.0,0.00027397,2]
[359382145,1745965647487,-978.61,0.00027397,2]
[359382146,1745965647511,-2436.16,0.00027397,2]
[359382147,1745965647533,-455.44,0.00027397,2]
[359382148,1745965647553,-400.0,0.00027397,2]
[359382149,1745965647574,-400.0,0.00027397,2]
[359382150,1745965647595,-402.60440826,0.00027397,2]
[359382151,1745965647616,-566.98,0.00027397,2]
[359382152,1745965647638,-2720.31,0.00027397,2]
[359382153,1745965647659,-400.0,0.00027397,2]
[359382154,1745965647680,-5903.05,0.00027397,2]
[359382155,1745965647701,-2905.68,0.00027397,2]
[359382156,1745965647722,-893.77,0.00027397,2]
[359382157,1745965647745,-400.0,0.00027397,2]
[359382158,1745965647766,-731.76,0.00027397,2]
[359382159,1745965647788,-1254.26,0.00027397,2]
[359382160,1745965647808,-400.0,0.00027397,2]
[359382161,1745965647830,-400.0,0.00027397,2]
[359382162,1745965647851,-2429.8,0.00027397,2]
[359382163,1745965647871,-1540.24,0.00027397,2]
[359382164,1745965647891,-1275.51,0.00027397,2]
[359382165,1745965647912,-1417.38,0.00027397,2]
[359382166,1745965647933,-400.0,0.00027397,2]
[359382167,1745965647955,-4398.56,0.00027397,2]
[359382168,1745965647975,-445.84,0.00027397,2]
[359382169,1745965647996,-400.0,0.00027397,2]
[359382170,1745965648017,-500.0,0.00027397,2]
[359382171,1745965648037,-1753.72,0.00027397,2]
[359382172,1745965648057,-510.82,0.00027397,2]
[359382173,1745965648078,-436.66,0.00027397,2]
[359382174,1745965648112,-445.02,0.00027397,2]
[359382175,1745965648134,-672.19,0.00027397,2]
[359382176,1745965648156,-1367.8,0.00027397,2]
[359382177,1745965648178,-400.0,0.00027397,2]
[359382178,1745965648201,-1033.02,0.00027397,2]
[359382179,1745965648222,-743.45,0.00027397,2]
[359382180,1745965648244,-713.45,0.00027397,2]
[359382181,1745965648266,-3764.84,0.00027397,2]
[359382182,1745965648288,-402.04,0.00027397,2]
[359382183,1745965648311,-3094.27,0.00027397,2]
[359382184,1745965648332,-400.0,0.00027397,2]
[359382185,1745965648355,-400.0,0.00027397,2]
[359382186,1745965648376,-417.66,0.00027397,2]
[359382187,1745965648398,-400.0,0.00027397,2]
[359382188,1745965648420,-159.6267719,0.00027397,2]
[359382189,1745965648442,-400.0,0.00027553,2]
[359382190,1745965648465,-400.0,0.00027553,2]
[359382191,1745965648486,-400.0,0.00027553,2]